bitfinex/quotes_SOLUSD_20260102
["timestamp","ask_amount","ask_price","bid_price","bid_amount"]
[1767392156051,4.42247469,132.46,132.43,8.26267756]
[1767392156562,0.6839102,132.46,132.43,8.26267756]
[1767392157061,4.42247469,132.46,132.43,8.26267756]
[1767392157240,0.6839102,132.45,132.43,7.55107447]
[1767392159560,0.6839102,132.45,132.44,1.6]
[1767392164764,0.6839102,132.45,132.42,0.71160309]
[1767392165065,0.6839102,132.45,132.43,7.55113658]
[1767392165743,8.23565809,132.47,132.44,0.68982441]
[1767392165943,11.97422258,132.47,132.44,0.68982441]
[1767392166167,11.97422258,132.47,132.43,7.55113658]
[1767392166168,0.68644773,132.46,132.43,8.24096099]
[1767392169544,0.68644773,132.46,132.44,1.7]
[1767392169744,0.68644773,132.46,132.43,8.24096099]
[1767392173164,11.9744936,132.46,132.43,0.68982441]
[1767392173548,0.68644773,132.45,132.42,0.68982441]
[1767392173963,0.68644773,132.45,132.42,8.24152926]
[1767392174773,4.42501222,132.45,132.43,1.7]
[1767392175371,4.42501222,132.45,132.39,0.68982441]
[1767392175372,0.58644773,132.43,132.39,0.68982441]
[1767392175575,3.83756449,132.42,132.39,8.24298413]
[1767392175754,0.099,132.42,132.39,8.24298413]
[1767392176073,3.73856449,132.43,132.4,0.68982441]
[1767392176368,4.32501222,132.44,132.4,0.68982441]
[1767392176872,7.55019578,132.45,132.41,0.68982441]
[1767392177654,7.64919578,132.45,132.41,8.24200071]
[1767392177857,7.64919578,132.45,132.42,0.68982441]
[1767392179600,0.099,132.45,132.42,8.24153416]
[1767392181069,4.32501222,132.46,132.43,0.68982441]
[1767392181486,0.58644773,132.46,132.43,0.68982441]
[1767392183195,8.13595761,132.46,132.43,0.68982441]
[1767392183489,11.8745221,132.46,132.43,0.68982441]
[1767392184104,11.28807437,132.46,132.43,0.68982441]
[1767392186594,3.73856449,132.44,132.43,0.68982441]
[1767392188093,3.73856449,132.44,132.41,7.55229967]
[1767392188593,2.39309448,132.44,132.41,7.55229967]
[1767392189991,2.39309448,132.45,132.42,8.2536557]
[1767392190296,3.07185596,132.45,132.42,8.2536557]
[1767392191781,2.39309448,132.45,132.43,0.70213966]
[1767392191982,2.39309448,132.46,132.44,0.70213966]
[1767392192181,3.07185596,132.47,132.44,0.70213966]
[1767392192686,2.39309448,132.46,132.44,0.70213966]
[1767392193700,2.39309448,132.45,132.44,0.70213966]
[1767392194094,2.39309448,132.45,132.42,18.87932336]
[1767392194095,3.07185596,132.45,132.42,7.55147145]
[1767392194423,2.39309448,132.44,132.42,7.55147145]
[1767392195392,3.07185596,132.45,132.42,7.55147145]
[1767392195995,3.07185596,132.45,132.42,8.25361111]
[1767392196503,0.67876148,132.45,132.42,8.25361111]
[1767392196902,3.07185596,132.46,132.43,0.70213966]
[1767392197197,2.39309448,132.46,132.43,0.70213966]
[1767392198202,2.39309448,132.46,132.43,8.2532118]
[1767392200906,10.62103014,132.47,132.43,8.2532118]
[1767392201204,5.65645002,132.46,132.43,8.2532118]
[1767392201403,10.62103014,132.47,132.43,8.2532118]
[1767392201607,8.04954445,132.46,132.43,8.2532118]
[1767392201799,2.39309448,132.46,132.43,8.2532118]
[1767392202203,7.54917418,132.47,132.44,0.70213966]
[1767392202397,10.62045981,132.48,132.44,0.70213966]
[1767392202908,0.67876148,132.52,132.47,0.70213966]
[1767392203078,6.33344829,132.51,132.47,0.70213966]
[1767392203281,0.67876148,132.51,132.47,0.70213966]
[1767392204006,0.67876148,132.51,132.48,0.70213966]
[1767392207509,10.6181965,132.52,132.49,0.70213966]
[1767392208086,8.22510202,132.52,132.49,0.70213966]
[1767392208926,0.77876148,132.54,132.5,0.70213966]
[1767392209281,8.32383067,132.54,132.5,0.70213966]
[1767392210114,0.77876148,132.54,132.5,0.70213966]
[1767392210611,0.77876148,132.54,132.5,8.24879002]
[1767392211005,0.77876148,132.54,132.51,0.70213966]
[1767392211211,0.1,132.54,132.51,0.70213966]
[1767392212696,0.1,132.54,132.52,7.54603078]
[1767392214917,0.1,132.54,132.51,8.24857713]
[1767392215721,0.1,132.54,132.52,0.70213966]
[1767392218419,0.1,132.54,132.52,8.24800869]
[1767392218623,0.1,132.54,132.53,0.70213966]
[1767392218805,0.1,132.55,132.53,0.67297062]
[1767392220823,0.1,132.55,132.53,8.218418]
[1767392221928,0.1,132.55,132.53,8.21817211]
[1767392222940,3.17422141,132.55,132.52,0.67667923]
[1767392223110,3.17422141,132.55,132.52,8.22231433]
[1767392223310,0.78112693,132.55,132.53,7.54515787]
[1767392223533,3.17422141,132.57,132.54,0.67667923]
[1767392223845,0.1,132.57,132.54,0.67667923]
[1767392224209,2.49309448,132.57,132.54,0.67667923]
[1767392224528,2.39309448,132.55,132.53,7.54520041]
[1767392224732,2.39309448,132.54,132.52,8.22262689]
[1767392225031,2.39309448,132.54,132.52,7.54594766]
[1767392225331,3.07422141,132.53,132.5,8.22378303]
[1767392225529,2.39309448,132.52,132.5,7.5471038]
[1767392225732,3.07422141,132.52,132.5,7.5471038]
[1767392226685,3.07422141,132.52,132.48,8.22474216]
[1767392226686,2.39309448,132.51,132.48,8.22474216]
[1767392227010,3.07422141,132.51,132.48,8.22474216]
[1767392227625,3.07422141,132.51,132.47,8.22528827]
[1767392227821,7.54616535,132.52,132.46,8.22578373]
[1767392227822,3.07422141,132.49,132.46,8.22578373]
[1767392228217,3.07422141,132.5,132.47,7.54885377]
[1767392229542,2.39309448,132.49,132.47,7.54885377]
[1767392230119,2.39309448,132.49,132.46,8.22585666]
[1767392230320,3.07422141,132.52,132.47,0.67667923]
[1767392230529,3.07422141,132.52,132.46,25.09947888]
[1767392230732,0.68112693,132.53,132.46,27.49257336]
[1767392231052,3.07422141,132.53,132.47,2.39309448]
[1767392231224,3.07422141,132.53,132.48,40.19908211]
[1767392232624,0.68112693,132.53,132.48,40.19908211]
[1767392233620,3.07422141,132.54,132.48,40.19908211]
[1767392235050,10.61924251,132.54,132.48,40.19908211]
[1767392236249,0.68112693,132.53,132.48,40.19908211]
[1767392238729,10.61924251,132.54,132.48,40.19908211]
[1767392239126,0.68112693,132.53,132.48,40.19908211]
[1767392239438,0.68112693,132.53,132.48,42.59217659]
[1767392239743,0.68112693,132.53,132.49,2.39309448]
[1767392240329,0.68112693,132.54,132.49,2.39309448]
[1767392241531,0.68112693,132.54,132.5,7.54716981]
[1767392241850,0.68112693,132.55,132.5,9.94026429]
[1767392242351,0.68112693,132.55,132.51,13.78]
[1767392243046,10.03652324,132.57,132.51,13.78]
[1767392243253,0.68112693,132.56,132.51,16.17309448]
[1767392243445,0.68112693,132.56,132.52,7.54603078]
[1767392246752,3.07422141,132.56,132.52,7.54603078]
[1767392247260,7.64342876,132.57,132.51,13.78]
[1767392247261,0.68112693,132.52,132.51,13.78]
[1767392247552,0.68112693,132.52,132.48,8.35013837]
[1767392247553,3.07422141,132.52,132.49,7.54751035]
[1767392248030,3.04422141,132.52,132.49,7.54751035]
[1767392248230,3.04422141,132.52,132.48,26.46421067]
[1767392248432,7.54469916,132.55,132.49,0.04573993]
[1767392248651,3.73391076,132.54,132.49,0.04573993]
[1767392249856,3.73391076,132.55,132.5,0.04573993]
[1767392250159,0.68003005,132.54,132.5,13.82573993]
[1767392250362,0.68003005,132.54,132.51,7.54660025]
[1767392252542,0.68003005,132.54,132.51,7.59234018]
[1767392253055,0.68003005,132.54,132.51,26.41310089]
[1767392254459,4.41394081,132.55,132.51,26.45884082]
[1767392257153,0.68003005,132.55,132.51,26.45884082]
[1767392257658,0.68003005,132.55,132.51,7.59234018]
[1767392257859,4.41394081,132.55,132.51,7.59234018]
[1767392258371,0.68003005,132.55,132.51,7.59234018]
[1767392258544,4.41394081,132.55,132.51,26.45884082]
[1767392259764,0.68003005,132.55,132.51,26.45884082]
[1767392260272,4.41394081,132.55,132.51,26.45884082]
[1767392260771,4.41394081,132.56,132.52,0.04573993]
[1767392262167,0.68003005,132.56,132.52,0.04573993]
[1767392263573,4.51394081,132.57,132.52,0.04573993]
[1767392263763,0.78003005,132.57,132.52,0.04573993]
[1767392264380,0.78003005,132.57,132.53,13.82573993]
[1767392264566,0.1,132.57,132.54,0.04573993]
[1767392265371,1e-08,132.59,132.57,0.04573993]
[1767392265571,0.1,132.6,132.58,0.04573993]
[1767392265572,0.05426008,132.6,132.58,0.04573993]
[1767392265871,0.05426008,132.6,132.58,26.39915521]
[1767392268679,0.05426008,132.6,132.57,7.54298402]
[1767392268861,3.78817084,132.6,132.57,7.54298402]
[1767392269473,0.05426008,132.6,132.57,30.13485661]
[1767392269978,0.05426008,132.6,132.58,3.73391076]
[1767392270274,0.1,132.65,132.57,26.40094585]
[1767392270275,0.68003005,132.64,132.59,17.51391076]
[1767392270681,0.1,132.65,132.6,30.1290842]
[1767392270859,0.1,132.65,132.61,3.73391076]
[1767392271194,0.78003005,132.65,132.61,3.73391076]
[1767392272090,0.78003005,132.65,132.62,7.54034082]
[1767392272972,0.1,132.65,132.62,11.27425158]
[1767392273172,0.68003005,132.66,132.62,30.12510363]
[1767392273376,0.68003005,132.66,132.62,43.88510363]
[1767392273691,0.68003005,132.66,132.62,40.15119287]
[1767392273869,0.68003005,132.66,132.62,21.30034082]
[1767392274266,0.68003005,132.66,132.62,7.54034082]
[1767392274464,0.68003005,132.65,132.62,7.54034082]
[1767392276712,0.68003005,132.66,132.62,30.12510363]
[1767392276862,0.68003005,132.68,132.64,3.73391076]
[1767392277481,0.68003005,132.68,132.63,3.73391076]
[1767392278783,0.68003005,132.68,132.64,7.53920386]
[1767392279782,0.68003005,132.68,132.64,26.38721351]
[1767392280367,0.68003005,132.68,132.64,40.14721351]
[1767392280987,0.68003005,132.68,132.64,43.88112427]
[1767392282183,0.68003005,132.68,132.64,40.14721351]
[1767392285308,4.41394081,132.68,132.64,40.14721351]
[1767392287205,0.68003005,132.68,132.64,40.14721351]
[1767392287395,4.41394081,132.68,132.64,40.14721351]
[1767392287802,0.68003005,132.68,132.64,40.14721351]
[1767392291004,0.67955716,132.67,132.64,21.29920386]
[1767392291206,0.67955716,132.67,132.64,7.53920386]
[1767392292192,0.67955716,132.67,132.63,26.3887728]
[1767392292502,0.67955716,132.67,132.64,3.73391076]
[1767392293504,0.67955716,132.67,132.65,7.5386355]
[1767392295693,0.67955716,132.67,132.64,7.53920386]
[1767392296211,0.67955716,132.67,132.64,26.38721351]
[1767392299708,0.37955716,132.67,132.64,26.38721351]
[1767392299888,0.37955716,132.67,132.64,30.42112427]
[1767392300085,0.1,132.69,132.65,0.3]
[1767392301413,0.1,132.69,132.65,4.03391076]
[1767392301595,0.1,132.69,132.65,0.3]
[1767392301801,0.77955716,132.69,132.65,7.83819044]
[1767392302512,0.67955716,132.68,132.65,7.53819044]
[1767392302700,4.41346792,132.68,132.65,7.53819044]
[1767392303092,0.67955716,132.67,132.65,7.53819044]
[1767392304212,0.67955716,132.67,132.64,7.53920386]
[1767392305106,0.67955716,132.67,132.64,7.83920386]
[1767392306619,0.77955716,132.69,132.65,7.8383496]
[1767392307516,0.67955716,132.68,132.65,7.5383496]
[1767392311704,0.67955716,132.68,132.65,26.38493836]
[1767392311908,0.76810103,132.69,132.67,7.53749905]
[1767392314236,0.76810103,132.69,132.66,7.53806723]
[1767392316121,0.1,132.69,132.66,26.68323532]
[1767392316621,0.76810103,132.69,132.66,7.53806723]
[1767392316826,3.05232137,132.68,132.66,7.53806723]
[1767392317428,0.66810103,132.68,132.66,7.53806723]
[1767392317609,3.05232137,132.68,132.65,7.53836025]
[1767392319219,0.66810103,132.68,132.65,7.53836025]
[1767392322309,0.66810103,132.68,132.65,26.38494901]
[1767392322525,0.66810103,132.68,132.65,26.68494901]
[1767392324254,0.1,132.69,132.66,0.3]
[1767392324435,18.02654622,132.7,132.67,0.3]
[1767392325340,18.02654622,132.7,132.68,0.3]
[1767392325341,1e-08,132.7,132.68,0.3]
[1767392326120,1e-08,132.71,132.69,2.68422034]
[1767392326315,1e-08,132.71,132.7,7.83579502]
[1767392327022,1e-08,132.71,132.7,7.53579502]
[1767392327536,1e-08,132.71,132.67,63.58422034]
[1767392327537,0.66810103,132.7,132.67,61.2]
[1767392327745,3.05232137,132.7,132.66,14.06]
[1767392328434,0.66810103,132.7,132.68,7.53649692]
[1767392329436,0.66810103,132.7,132.67,7.53749905]
[1767392329834,3.05232137,132.69,132.67,7.53749905]
[1767392331257,2.38422034,132.68,132.64,19.14722017]
[1767392331430,2.38422034,132.67,132.65,7.5383571]
[1767392332542,2.38422034,132.67,132.64,7.53920386]
[1767392333146,3.05232137,132.67,132.64,7.53920386]
[1767392334147,3.05232137,132.66,132.64,7.53920386]
[1767392335753,2.38422034,132.66,132.64,7.53920386]
[1767392335965,2.38422034,132.65,132.62,18.84983129]
[1767392336652,2.38422034,132.65,132.62,19.51296496]
[1767392336850,7.53716365,132.68,132.62,19.51296496]
[1767392337158,2.38422034,132.65,132.62,27.05330578]
[1767392337849,7.53753281,132.67,132.62,27.05330578]
[1767392338158,2.38422034,132.65,132.63,0.66313367]
[1767392338362,2.38422034,132.67,132.63,0.66313367]
[1767392338566,2.35422034,132.66,132.65,0.66313367]
[1767392338735,2.35422034,132.66,132.63,0.66313367]
[1767392339455,2.35422034,132.66,132.64,7.53920386]
[1767392340134,3.05232137,132.67,132.64,7.53920386]
[1767392341972,7.53717874,132.68,132.63,0.66313367]
[1767392341973,3.07296028,132.66,132.63,0.66313367]
[1767392342145,2.38422034,132.65,132.63,8.20276713]
[1767392342635,3.07296028,132.66,132.63,8.20276713]
[1767392343043,2.38422034,132.66,132.63,8.20276713]
[1767392343757,8.24982251,132.67,132.63,8.20276713]
[1767392343941,2.38422034,132.65,132.63,8.20276713]
[1767392344663,2.38422034,132.65,132.63,7.53963346]
[1767392344843,3.09586087,132.65,132.63,7.53963346]
[1767392345040,2.38422034,132.64,132.61,8.22803044]
[1767392345254,2.38422034,132.63,132.61,8.22803044]
[1767392345559,0.64563583,132.64,132.61,8.22803044]
[1767392345560,2.38422034,132.62,132.61,8.22803044]
[1767392346861,2.38422034,132.62,132.61,7.54059145]
[1767392347072,2.38422034,132.62,132.56,63.58422034]
[1767392347073,0.71033357,132.61,132.58,8.22975284]
[1767392347255,2.38422034,132.59,132.58,8.22975284]
[1767392347442,2.38422034,132.6,132.58,8.22975284]
[1767392347768,2.38422034,132.63,132.6,0.68743899]
[1767392348144,2.38422034,132.62,132.6,0.68743899]
[1767392349048,2.38422034,132.62,132.6,8.22863436]
[1767392350946,3.02918946,132.63,132.6,8.22863436]
[1767392351653,3.02918946,132.63,132.6,7.54119537]
[1767392353477,3.02918946,132.63,132.6,8.22863436]
[1767392354475,10.63584186,132.64,132.6,8.22863436]
[1767392354678,10.63584186,132.64,132.61,0.68743899]
[1767392355970,3.09653432,132.64,132.61,8.22832585]
[1767392356876,3.09653432,132.64,132.61,0.68743899]
[1767392357977,10.63577818,132.64,132.6,8.22863746]
[1767392358153,10.63577818,132.64,132.6,10.6128578]
[1767392359375,3.09653432,132.64,132.61,7.54085372]
[1767392360576,0.71231398,132.64,132.61,7.54085372]
[1767392363279,0.71231398,132.64,132.61,10.61251305]
[1767392363474,0.71231398,132.67,132.64,0.68743899]
[1767392363682,0.71231398,132.67,132.65,2.38422034]
[1767392363869,0.71231398,132.67,132.64,3.07165933]
[1767392364061,3.09653432,132.7,132.66,3.07165933]
[1767392364579,0.64496912,132.69,132.66,8.22549332]
[1767392364782,0.64496912,132.69,132.66,10.60971366]
[1767392365082,0.64496912,132.69,132.66,2.38422034]
[1767392365265,0.64496912,132.69,132.65,10.6100471]
[1767392365867,0.64496912,132.69,132.65,7.53838777]
[1767392366065,0.64496912,132.69,132.66,2.38422034]
[1767392367378,0.64496912,132.69,132.66,9.92224118]
[1767392369176,0.64496912,132.69,132.66,10.59025326]
[1767392369582,0.64496912,132.69,132.66,8.20603292]
[1767392369878,0.64496912,132.69,132.66,9.92224118]
[1767392370082,0.64496912,132.69,132.66,7.53802084]
[1767392371675,0.64496912,132.69,132.65,3.08023914]
[1767392371676,0.68698347,132.66,132.63,0.6960188]
[1767392371986,3.07137662,132.66,132.62,8.23589842]
[1767392372193,3.07137662,132.66,132.63,0.6960188]
[1767392372485,4.41412072,132.66,132.63,0.6960188]
[1767392372875,4.39683968,132.65,132.62,8.23589842]
[1767392376561,1e-08,132.71,132.65,0.6960188]
[1767392376562,0.68715628,132.7,132.65,0.6960188]
[1767392376813,0.68715628,132.7,132.66,4.42298324]
[1767392376995,4.41412072,132.7,132.66,0.6960188]
[1767392377695,8.20637997,132.69,132.66,0.6960188]
[1767392377895,0.67004632,132.67,132.64,7.53868523]
[1767392378193,0.6868141,132.66,132.63,8.2353496]
[1767392379692,0.6868141,132.66,132.64,7.53908939]
[1767392382683,4.41412072,132.67,132.64,0.6960188]
[1767392383898,0.68715628,132.67,132.64,0.6960188]
[1767392384092,0.68715628,132.67,132.64,8.23514978]
[1767392386193,0.68715628,132.67,132.64,11.96211422]
[1767392386394,0.68715628,132.68,132.65,4.42298324]
[1767392386894,8.2231937,132.7,132.66,0.6960188]
[1767392387899,0.66987524,132.69,132.66,0.6960188]
[1767392390079,0.66987524,132.69,132.66,8.2340547]
[1767392393806,8.20631635,132.69,132.66,0.6960188]
[1767392394021,11.93328079,132.69,132.66,0.6960188]
[1767392394815,8.20631635,132.69,132.66,0.6960188]
[1767392395185,8.22359739,132.69,132.66,0.6960188]
[1767392395695,4.39683968,132.68,132.65,8.23437443]
[1767392395880,4.41412072,132.68,132.65,7.53835563]
[1767392396084,4.41412072,132.68,132.65,8.23437443]
[1767392396816,11.95013785,132.7,132.66,8.23394986]
[1767392396995,0.66987524,132.69,132.66,8.23394986]
[1767392397804,0.66987524,132.69,132.66,0.6960188]
[1767392398705,11.93333334,132.69,132.66,0.6960188]
[1767392399087,0.66987524,132.69,132.66,8.23405895]
[1767392400415,1e-08,132.71,132.69,0.65449258]
[1767392400589,0.69497224,132.74,132.7,3.72696444]
[1767392400910,0.69139799,132.73,132.69,3.72696444]
[1767392402210,0.69139799,132.73,132.7,7.53579502]
[1767392403106,0.69139799,132.73,132.7,11.26275946]
[1767392404206,0.69139799,132.73,132.7,7.53579502]
[1767392407521,0.69139799,132.73,132.7,26.37528258]
[1767392409008,0.69139799,132.73,132.7,27.02977516]
[1767392410910,3.72696444,132.75,132.7,27.02977516]
[1767392411422,7.53262682,132.76,132.7,27.02977516]
[1767392411616,3.72696444,132.75,132.7,27.02977516]
[1767392412831,7.53262682,132.76,132.7,27.02977516]
[1767392413002,0.099,132.74,132.7,27.02977516]
[1767392414307,3.82596444,132.74,132.7,27.02977516]
[1767392415223,0.099,132.74,132.72,7.53465943]
[1767392415431,0.099,132.74,132.72,7.50628102]
[1767392416129,4.3289205,132.76,132.72,8.1607736]
[1767392416312,4.3289205,132.76,132.72,26.99742218]
[1767392416505,0.099,132.75,132.72,26.99742218]
[1767392416706,3.82596444,132.75,132.72,26.99742218]
[1767392421866,3.72696444,132.75,132.73,0.65449258]
[1767392422410,22.55408577,132.79,132.72,18.83664858]
[1767392422411,0.1,132.8,132.76,0.65449258]
[1767392422614,0.1,132.8,132.75,3.72696444]
[1767392422615,3.82696444,132.8,132.75,3.72696444]
[1767392422817,3.82696444,132.8,132.74,17.48696444]
[1767392423331,3.72696444,132.79,132.74,13.76]
[1767392423637,0.1,132.8,132.74,13.76]
[1767392423638,0.199,132.8,132.74,13.76]
[1767392423838,3.72696444,132.79,132.74,13.76]
[1767392424140,3.72696444,132.79,132.75,7.53295668]
[1767392424322,3.72696444,132.79,132.75,26.36534839]
[1767392424523,3.72696444,132.79,132.76,0.65449258]
[1767392425241,3.72696444,132.79,132.75,26.36534839]
[1767392425242,3.72696444,132.79,132.77,8.18631452]
[1767392425455,0.199,132.8,132.77,8.18631452]
[1767392425616,3.92596444,132.8,132.77,8.18631452]
[1767392426549,1e-08,132.8,132.79,0.65449258]
[1767392427326,1e-08,132.8,132.79,11.91214457]
[1767392427641,1e-08,132.8,132.79,8.18518013]
[1767392428421,1e-08,132.8,132.79,7.53068755]
[1767392429361,0.1,132.82,132.79,11.25765199]
[1767392431446,0.62616351,132.82,132.79,11.25765199]
[1767392431828,0.1,132.82,132.79,30.76118324]
[1767392432033,0.199,132.82,132.79,30.76118324]
[1767392432523,0.199,132.82,132.79,29.41284699]
[1767392433242,0.199,132.82,132.79,8.20749993]
[1767392433639,0.1,132.84,132.82,0.67681238]
[1767392433845,2.37862819,132.83,132.75,2.37862819]
[1767392434044,2.37862819,132.8,132.77,7.53148803]
[1767392434648,2.37862819,132.79,132.77,7.53148803]
[1767392435443,2.37862819,132.79,132.76,7.53238927]
[1767392435633,2.37862819,132.79,132.76,26.36336245]
[1767392435834,2.37862819,132.79,132.77,0.67681238]
[1767392436034,2.37862819,132.8,132.77,0.67681238]
[1767392436236,2.37862819,132.79,132.77,0.67681238]
[1767392436946,0.099,132.81,132.78,8.20806708]
[1767392437128,2.37862819,132.82,132.79,0.67681238]
[1767392437325,2.47762819,132.82,132.79,0.67681238]
[1767392437526,2.37862819,132.82,132.79,0.67681238]
[1767392438128,10.55658518,132.83,132.79,8.20740219]
[1767392438346,2.37862819,132.82,132.79,8.20740219]
[1767392439148,3.0280198,132.83,132.8,0.67681238]
[1767392440640,0.64939161,132.83,132.8,7.53012048]
[1767392440846,3.0280198,132.83,132.8,7.53012048]
[1767392441747,18.81743842,132.86,132.82,3.05544057]
[1767392441748,0.65495113,132.86,132.82,3.05544057]
[1767392442552,8.18077102,132.88,132.84,0.67681238]
[1767392442852,0.099,132.87,132.84,0.67681238]
[1767392443748,0.65495113,132.88,132.85,0.67681238]
[1767392443952,0.65495113,132.88,132.85,3.05544057]
[1767392444755,0.65495113,132.88,132.85,10.58238571]
[1767392445330,41.37426789,132.9,132.86,0.67681238]
[1767392445554,2.47762819,132.89,132.85,8.20375752]
[1767392445851,2.37862819,132.88,132.85,8.20375752]
[1767392449159,10.00267139,132.89,132.85,8.20375752]
[1767392449355,3.02257092,132.86,132.83,0.67681238]
[1767392449531,3.03357932,132.87,132.83,0.67681238]
[1767392450041,3.03357932,132.87,132.83,8.20488293]
[1767392451441,0.65495113,132.87,132.84,7.52773523]
[1767392452768,2.37862819,132.88,132.85,0.67681238]
[1767392452946,33.19459645,132.9,132.86,0.67681238]
[1767392453263,17.07596826,132.9,132.88,0.67681238]
[1767392453960,16.77357932,132.94,132.89,0.67681238]
[1767392454147,24.2958329,132.94,132.89,0.67681238]
[1767392454352,0.099,132.93,132.89,0.67681238]
[1767392454746,2.47762819,132.93,132.89,0.67681238]
[1767392455038,10.00039474,132.93,132.89,8.20140754]
[1767392455239,2.37862819,132.91,132.88,8.2022329]
[1767392459665,2.48313211,132.91,132.88,7.52542052]
[1767392459845,2.4885265,132.89,132.85,8.1992969]
[1767392460046,3.01723048,132.88,132.85,8.1992969]
[1767392460743,2.49381354,132.87,132.83,0.67233855]
[1767392460950,3.01199631,132.86,132.83,0.67233855]
[1767392461558,3.01199631,132.86,132.84,7.52755712]
[1767392461759,2.37862819,132.86,132.84,7.52755712]
[1767392462964,3.03357932,132.87,132.84,7.52755712]
[1767392463567,3.03357932,132.87,132.82,8.20102499]
[1767392463568,3.0280198,132.85,132.82,8.20102499]
[1767392463748,2.37862819,132.85,132.82,8.20102499]
[1767392463948,3.03357932,132.86,132.82,8.20102499]
[1767392465855,0.65495113,132.86,132.82,8.20102499]
[1767392466058,3.03357932,132.87,132.84,0.67233855]
[1767392466256,0.65495113,132.87,132.84,0.67233855]
[1767392466758,10.55985455,132.87,132.84,0.67233855]
[1767392467658,2.37862819,132.86,132.83,8.20030088]
[1767392468169,2.47762819,132.86,132.83,8.20030088]
[1767392469654,0.099,132.86,132.83,8.20030088]
[1767392469856,2.37862819,132.85,132.83,0.67233855]
[1767392470159,2.37862819,132.85,132.81,8.2017056]
[1767392470160,2.37862819,132.84,132.81,8.2017056]
[1767392471060,2.37862819,132.84,132.8,8.20230415]
[1767392471061,2.37862819,132.83,132.8,8.20230415]
[1767392471269,2.37862819,132.82,132.79,8.20265277]
[1767392471886,3.01723048,132.81,132.78,8.20333686]
[1767392472759,3.01723048,132.81,132.77,34.92060559]
[1767392472760,2.37862819,132.8,132.77,34.92060559]
[1767392472981,5.51529,132.86,132.77,34.92060559]
[1767392473277,2.37862819,132.82,132.78,0.67233855]
[1767392473459,2.37862819,132.82,132.79,14.41233855]
[1767392474676,2.37862819,132.81,132.79,14.41233855]
[1767392474996,2.37862819,132.81,132.79,13.74]
[1767392476284,2.37862819,132.8,132.78,0.67233855]
[1767392476485,2.37862819,132.8,132.78,13.74]
[1767392476893,7.52903136,132.82,132.78,21.94354196]
[1767392477064,2.37862819,132.81,132.78,21.94354196]
[1767392477264,2.37862819,132.8,132.78,21.94354196]
[1767392477466,2.37862819,132.8,132.78,14.41233855]
[1767392477666,2.37862819,132.8,132.78,13.74]
[1767392477865,2.37862819,132.79,132.78,13.74]
[1767392478084,2.37862819,132.8,132.78,13.74]
[1767392478464,2.37862819,132.8,132.77,8.20406626]
[1767392478668,2.37862819,132.8,132.78,13.74]
[1767392479293,184.81905226,132.85,132.8,0.67233855]
[1767392479599,9.90648124,132.84,132.8,0.67233855]
[1767392479891,2.37862819,132.83,132.8,0.67233855]
[1767392480692,2.37862819,132.84,132.8,8.20230535]
[1767392480909,2.37862819,132.85,132.8,8.20230535]
[1767392481098,2.37862819,132.85,132.81,0.67233855]
[1767392481471,102.4,132.92,132.85,0.67233855]
[1767392481683,307.3,132.93,132.86,14.41233855]
[1767392481684,2.37862819,132.9,132.86,14.41233855]
[1767392481873,2.37862819,132.89,132.86,14.41233855]
[1767392483591,7.52497936,132.9,132.86,14.41233855]
[1767392483592,9.90360755,132.9,132.86,14.41233855]
[1767392484685,9.90360755,132.9,132.86,21.93887898]
[1767392484988,9.90360755,132.9,132.86,14.41233855]
[1767392485295,9.90360755,132.9,132.86,0.67233855]
[1767392485496,9.90360755,132.9,132.87,13.74]
[1767392485970,2.37862819,132.89,132.86,13.74]
[1767392487275,9.90372399,132.89,132.86,13.74]
[1767392487694,9.90372399,132.89,132.85,8.19953083]
[1767392488073,9.90372399,132.89,132.86,13.74]
[1767392488598,2.37862819,132.87,132.81,19.52703377]
[1767392488773,2.37862819,132.86,132.83,7.52840534]
[1767392489375,2.37862819,132.87,132.84,7.52779136]
[1767392489582,2.37862819,132.86,132.83,8.24089912]
[1767392491681,2.37862819,132.87,132.83,8.24089912]
[1767392491996,2.37862819,132.86,132.83,8.24089912]
[1767392492601,3.71554156,132.87,132.83,8.24089912]
[1767392493906,3.71554156,132.87,132.84,13.74]
[1767392494399,3.71554156,132.87,132.84,14.45252077]
[1767392494901,18.8119736,132.9,132.86,0.71252077]
[1767392494902,3.71554156,132.9,132.86,0.71252077]
[1767392495894,11.24013066,132.9,132.86,8.23915454]
[1767392497398,11.24013066,132.9,132.87,13.74]
[1767392497597,11.24013066,132.9,132.87,13.71081676]
[1767392498104,11.24013066,132.9,132.87,13.68239121]
[1767392499606,3.71554156,132.9,132.87,21.92097418]
[1767392500308,3.71554156,132.9,132.87,14.39491198]
[1767392501402,11.24009794,132.9,132.87,14.39491198]
[1767392501608,3.71554156,132.89,132.87,14.39491198]
[1767392501984,3.71554156,132.9,132.87,14.39491198]
[1767392502401,11.23970359,132.91,132.88,0.71252077]
[1767392502600,11.23970359,132.91,132.88,0.68432606]
[1767392505312,7.56755743,132.93,132.88,7.52519091]
[1767392505506,3.76008511,132.93,132.89,0.71252077]